fUSD/lending_fUSD_20251030
["ID","MTS","AMOUNT","RATE_DAILY","PERIOD"]
[392706448,1761837044370,-500.0,0.00024773,2]
[392706449,1761837044379,-172.03076981,0.00024773,2]
[392706450,1761837044389,-500.0,0.00024773,2]
[392706451,1761837044398,-500.0,0.00024773,2]
[392706452,1761837044408,-5000.0,0.000248,2]
[392706453,1761837044417,-114810.466164,0.000248,3]
[392706454,1761837044426,-477.13749083,0.000248,3]
[392706455,1761837044435,-152.0,0.00024838,13]
[392706456,1761837044445,-150.0,0.0002485,2]
[392706457,1761837044454,-321.66,0.00024931,2]
[392706458,1761837044463,-160.83,0.00024937,2]
[392706459,1761837044471,-500.0,0.00024973,2]
[392706460,1761837044481,-500.0,0.00024973,2]
[392706461,1761837044490,-500.0,0.00024973,2]
[392706462,1761837044499,-500.0,0.00024973,2]
[392706463,1761837044516,-311.98675031,0.00024973,2]
[392706464,1761837044527,-151.01,0.0002498,2]
[392706465,1761837044537,-151.01,0.0002498,2]
[392706466,1761837044546,-151.01,0.0002498,2]
[392706467,1761837044555,-157.58259385,0.00024986,2]
[392706468,1761837044565,-150.00000016,0.00024987,2]
[392706469,1761837044574,-287026.165411,0.0002499,3]
[392706470,1761837044583,-258438.042879,0.0002499,3]
[392706471,1761837044593,-151.01,0.0002499,2]
[392706472,1761837044606,-151.01,0.0002499,2]
[392706473,1761837044615,-151.01,0.0002499,2]
[392706474,1761837044624,-151.01,0.0002499,2]
[392706475,1761837044634,-151.01,0.0002499,2]
[392706476,1761837044645,-151.01,0.0002499,2]
[392706477,1761837044655,-151.01,0.0002499,2]
[392706478,1761837044664,-151.01,0.0002499,2]
[392706479,1761837044674,-1010.0,0.00025,2]
[392706480,1761837044684,-360.0,0.00025,2]
[392706481,1761837044694,-1050.22806197,0.00025,2]
[392706482,1761837044703,-165.07313608,0.00025,2]
[392706483,1761837044712,-2971.75099625,0.00025,2]
[392706484,1761837044722,-1082.38,0.00025,2]
[392706485,1761837044732,-600.82820094,0.00025,2]
[392706486,1761837044742,-204.7993953,0.00025,2]
[392706487,1761837044751,-1761.5162789,0.00025,2]
[392706488,1761837044760,-2634.18353097,0.00025,3]
[392706489,1761837044770,-3003.62049902,0.00025,2]
[392706490,1761837044779,-4076.47251584,0.00025,7]
[392706491,1761837044788,-4785.27102253,0.00025,15]
[392706492,1761837044798,-361560.00527272,0.00025,2]
[392706493,1761837044807,-3776.68981337,0.00025,2]
[392706494,1761837044816,-252.53873129,0.00025,2]
[392706495,1761837044826,-500.38234287,0.00025,2]
[392706496,1761837044836,-7064.0,0.00025,2]
[392706497,1761837044845,-1295.37850114,0.00025,4]
[392706498,1761837044854,-12034.29349299,0.00025,2]
[392706499,1761837044864,-450.0,0.00025,2]
[392706500,1761837044873,-152.131,0.00025,2]
[392706501,1761837044883,-15000.0,0.0002501,2]
[392706502,1761837044893,-200.0,0.000251,2]
[392706503,1761837044902,-225.18697532,0.00025206,2]
[392706504,1761837044911,-157.58259385,0.0002526,2]
[392706505,1761837044920,-6453.0,0.0002528,2]
[392706506,1761837044930,-1000.0,0.00025321,2]
[392706507,1761837044939,-1000.0,0.00025321,2]
[392706508,1761837044950,-1000.0,0.00025321,2]
[392706509,1761837044960,-844.7340357,0.00025321,2]
[392706510,1761837044970,-1000.0,0.00025321,2]
[392706511,1761837044980,-1000.0,0.00025321,2]
[392706512,1761837044989,-1000.0,0.00025321,2]
[392706513,1761837045000,-1000.0,0.00025321,2]
[392706514,1761837045010,-1000.0,0.00025321,2]
[392706515,1761837045020,-1000.0,0.00025321,2]
[392706516,1761837045029,-1000.0,0.00025321,2]
[392706517,1761837045039,-1000.0,0.00025321,2]
[392706518,1761837045049,-1000.0,0.00025321,2]
[392706519,1761837045058,-152.0,0.00025332,14]
[392706520,1761837045068,-151.01,0.0002538,2]
[392706521,1761837045077,-28702.6165411,0.0002539,3]
[392706522,1761837045087,-23494.3675344,0.0002539,3]
[392706523,1761837045097,-151.01,0.0002539,2]
[392706524,1761837045106,-51226.20565008,0.000254,2]
[392706525,1761837045115,-151.01,0.0002548,2]
[392706526,1761837045126,-23494.3675344,0.0002549,3]
[392706527,1761837045136,-1082.38,0.000255,2]
[392706528,1761837045146,-546.15,0.000255,30]
[392706529,1761837045155,-477.13749083,0.000255,3]
[392706530,1761837045164,-1004.0,0.000255,2]
[392706531,1761837045173,-1000.0,0.00025521,2]
[392706532,1761837045183,-313.67868286,0.00025521,2]
[392706533,1761837045193,-1000.0,0.00025521,2]
[392706534,1761837045203,-1000.0,0.00025521,2]
[392706535,1761837045212,-157.58259385,0.00025534,2]
[392706536,1761837045222,-151.01,0.0002568,2]
[392706537,1761837045231,-28702.6165411,0.0002569,3]
[392706538,1761837045241,-23494.3675344,0.0002569,3]
[392706539,1761837045250,-151.01,0.0002569,2]
[392706540,1761837045260,-39519.95359865,0.000257,2]
[392706541,1761837045270,-5000.0,0.00025715,2]
[392706542,1761837045281,-5000.0,0.00025715,2]
[392706543,1761837045293,-5000.0,0.00025715,2]
[392706544,1761837045302,-5000.0,0.00025715,2]
[392706545,1761837045312,-233.51889341,0.00025754,2]
[392706546,1761837045321,-152.0,0.00025826,15]
[392706547,1761837045330,-217.12,0.00025826,7]
[392706548,1761837045340,-28702.6165411,0.00025858,3]
[392706549,1761837045349,-151.01,0.00025858,2]
[392706550,1761837045359,-1500.0,0.00025868,2]
[392706551,1761837045369,-357.95006839,0.00025868,2]
[392706552,1761837045379,-772.52876704,0.00025868,2]
[392706553,1761837045388,-1357.90479044,0.00025868,2]
[392706554,1761837045398,-1500.0,0.00025868,2]
[392706555,1761837045407,-1500.0,0.00025868,2]
[392706556,1761837045417,-1096.03695751,0.00025868,2]
[392706557,1761837045427,-1500.0,0.00025868,2]
[392706558,1761837045438,-1500.0,0.00025868,2]
[392706559,1761837045449,-1337.78371196,0.00025868,2]
[392706560,1761837045460,-207.74721825,0.00025868,2]
[392706561,1761837045470,-202.16342668,0.00025868,2]
[392706562,1761837045485,-23494.3675344,0.00025869,3]
[392706563,1761837045796,-20065.56540277,0.00025879,2]
[392706564,1761837045806,-151.01,0.0002589,2]
[392706565,1761837045816,-22116.05,0.000259,7]
[392706566,1761837045826,-477.13749083,0.000259,7]
[392706567,1761837045837,-151.01,0.0002598,2]
[392706568,1761837045847,-151.01,0.0002598,2]
[392706569,1761837045857,-592.67352394,0.0002599,2]
[392706570,1761837045866,-57405.2330822,0.0002599,3]
[392706571,1761837045877,-70483.1026033,0.0002599,3]
[392706572,1761837045887,-151.01,0.0002599,2]
[392706573,1761837045897,-151.01,0.0002599,2]
[392706574,1761837045907,-151.01,0.0002599,2]
[392706575,1761837045916,-676.29891545,0.00025999,21]
[392706576,1761837045925,-15992.39373627,0.00026,2]
[392706577,1761837045935,-213.57880379,0.00026,2]
[392706578,1761837045944,-2813.98687757,0.00026,10]
[392706579,1761837045954,-33916.72151444,0.00026,2]
[392706580,1761837045963,-6536.20028323,0.00026,2]
[392706581,1761837045975,-4463.6777578,0.00026,2]
[392706583,1761837045984,-4433.65,0.00026,2]
[392706585,1761837045994,-161.57,0.00026,2]
[392706587,1761837046003,-59358.92,0.00026,7]
[392706589,1761837046012,-51856.01464117,0.00026,4]
[392706590,1761837046022,-500.0,0.00026,2]
[392706591,1761837046032,-500.0,0.00026,2]
[392706592,1761837046041,-500.0,0.00026,2]
[392706593,1761837046050,-477.13749083,0.00026,7]
[392706594,1761837046060,-750.0,0.00026027,2]
[392706595,1761837046069,-750.0,0.00026027,2]
[392706596,1761837046079,-28702.6165411,0.00026058,3]
[392706597,1761837046088,-512.15015859,0.00026068,2]
[392706598,1761837046097,-1000.0,0.00026068,2]
[392706599,1761837046107,-1000.0,0.00026068,2]
[392706600,1761837046116,-477.13749083,0.000263,3]
[392706601,1761837046126,-750.0,0.00026301,2]
[392706602,1761837046135,-750.0,0.00026301,2]
[392706603,1761837046144,-242.15909246,0.00026302,2]
[392706604,1761837046154,-152.0,0.0002632,16]
[392706605,1761837046163,-151.01,0.0002639,2]
[392706606,1761837046172,-27118.38595213,0.000264,2]
[392706607,1761837046181,-23494.3675344,0.00026406,3]
[392706608,1761837046190,-2000.0,0.00026416,2]
[392706609,1761837046200,-2000.0,0.00026416,2]
[392706610,1761837046209,-2000.0,0.00026416,2]
[392706611,1761837046219,-2000.0,0.00026416,2]
[392706612,1761837046231,-938.37343532,0.00026416,2]
[392706613,1761837046241,-4299.6377941,0.00026466,2]
[392706614,1761837046250,-921.1081637,0.00026469,2]
[392706615,1761837046259,-1004.0,0.000265,2]
[392706616,1761837046268,-151.01,0.00026574,2]
[392706617,1761837046277,-750.0,0.00026575,2]
[392706618,1761837046288,-750.0,0.00026575,2]
[392706619,1761837046297,-28702.6165411,0.00026584,3]
[392706620,1761837046306,-16230.8217141,0.00026594,2]
[392706621,1761837046315,-500.0,0.00026618,7]
[392706622,1761837046324,-500.0,0.00026662,7]
[392706623,1761837046333,-641.12,0.00026676,2]
[392706624,1761837046342,-151.01,0.00026731,2]
[392706625,1761837046352,-23494.3675344,0.00026742,3]
[392706626,1761837046361,-2757.22560133,0.00026748,3]
[392706627,1761837046370,-32046.424277,0.00026751,2]
[392706628,1761837046379,-500.0,0.00026777,7]
[392706629,1761837046388,-150.0,0.00026783,30]
[392706630,1761837046397,-244.31755965,0.00026783,30]
[392706631,1761837046405,-150.0,0.00026783,30]
[392706632,1761837046415,-614.04316688,0.00026783,30]
[392706633,1761837046425,-150.0,0.00026783,30]
[392706634,1761837046434,-475.79137584,0.00026783,30]
[392706635,1761837046443,-152.0,0.00026814,17]
[392706636,1761837046452,-750.0,0.00026849,2]
[392706637,1761837046461,-750.0,0.00026849,2]
[392706638,1761837046470,-267.99668963,0.0002685,2]
[392706639,1761837046482,-500.0,0.00026927,7]
[392706640,1761837046492,-151.01,0.00026954,2]
[392706641,1761837046501,-1000.0,0.00026964,2]
[392706642,1761837046511,-520.55385123,0.00026964,2]
[392706643,1761837046521,-2500.0,0.00026964,2]
[392706644,1761837046530,-1396.80660959,0.00026964,2]
[392706645,1761837046539,-2500.0,0.00026965,7]
[392706646,1761837046548,-500.0,0.00026966,7]
[392706647,1761837046557,-150.0,0.00026973,2]
[392706648,1761837046566,-2500.0,0.00026974,7]
[392706649,1761837046576,-151.01,0.0002698,2]
[392706650,1761837046586,-151.01,0.0002698,2]
[392706651,1761837046595,-2500.0,0.00026983,7]
[392706652,1761837046609,-140966.205207,0.0002699,3]
[392706653,1761837046619,-151.01,0.0002699,2]
[392706654,1761837046629,-151.01,0.0002699,2]
[392706655,1761837046639,-151.01,0.0002699,2]
[392706657,1761837046648,-151.01,0.0002699,2]
[392706658,1761837046657,-151.01,0.0002699,2]
[392706660,1761837046666,-151.01,0.0002699,2]
[392706662,1761837046677,-151.01,0.0002699,2]
[392706664,1761837046687,-151.01,0.0002699,2]
[392706666,1761837046696,-151.01,0.0002699,2]
[392706668,1761837046706,-151.01,0.0002699,2]
[392706670,1761837046715,-151.01,0.0002699,2]
[392706672,1761837046726,-2500.0,0.00026991,7]
[392706674,1761837046735,-543157.01251514,0.00027,2]
[392706676,1761837046744,-1000.0,0.00027,2]
[392706678,1761837046754,-500.0,0.00027,5]
[392706680,1761837046763,-10000.0,0.00027,2]
[392706682,1761837046772,-530.0,0.00027,2]
[392706684,1761837046783,-1943.44590695,0.00027,14]
[392706686,1761837046793,-250.0,0.00027,2]
[392706688,1761837046802,-929.121013,0.00027,2]
[392706690,1761837046811,-500.0,0.00027,2]
[392706692,1761837046820,-2500.0,0.00027,7]
[392706694,1761837046829,-2500.0,0.00027009,7]
[392706696,1761837046839,-2500.0,0.00027018,7]
[392706697,1761837046848,-500.0,0.00027018,7]
[392706699,1761837046857,-2500.0,0.00027027,7]
[392706701,1761837046866,-2500.0,0.00027035,7]
[392706703,1761837046875,-2500.0,0.00027044,7]
[392706705,1761837046884,-2500.0,0.00027053,7]
[392706706,1761837046893,-500.0,0.00027059,7]
[392706707,1761837046902,-2500.0,0.00027062,7]
[392706708,1761837046911,-2500.0,0.00027071,7]
[392706709,1761837046921,-2500.0,0.00027079,7]
[392706710,1761837046930,-500.0,0.00027086,7]
[392706711,1761837046939,-151.01,0.0002709,2]
[392706712,1761837046948,-22116.05,0.000271,7]
[392706713,1761837046957,-500.0,0.00027113,7]
[392706714,1761837046966,-500.0,0.00027118,7]
[392706715,1761837046976,-750.0,0.00027123,2]
[392706716,1761837046985,-750.0,0.00027123,2]
[392706717,1761837046994,-3634.02,0.00027123,2]
[392706718,1761837047003,-1042.31799526,0.00027199,2]
[392706719,1761837047012,-500.0,0.00027201,7]
[392706720,1761837047021,-450.0,0.000273,3]
[392706721,1761837047030,-152.0,0.00027308,18]
[392706722,1761837047040,-500.0,0.00027318,7]
[392706723,1761837047049,-500.0,0.00027365,7]
[392706724,1761837047057,-150.0,0.00027369,2]
[392706725,1761837047066,-445.61861234,0.00027386,2]
[392706726,1761837047075,-4053.66673712,0.0002739,2]
[392706727,1761837047084,-8007.62685197,0.0002739,2]
[392706728,1761837047093,-3196.39723032,0.0002739,2]
[392706729,1761837047102,-1002.43073672,0.00027397,2]
[392706730,1761837047112,-631.69970346,0.00027397,2]
[392706731,1761837047122,-600.0,0.00027397,2]
[392706732,1761837047132,-300.0,0.00027397,2]
[392706733,1761837047141,-511.78,0.00027397,2]
[392706734,1761837047150,-33047.67,0.00027397,2]
[392706735,1761837047159,-1027.05,0.00027397,2]
[392706736,1761837047168,-1152.56,0.00027397,16]
[392706737,1761837047178,-750.0,0.00027397,2]
[392706738,1761837047187,-750.0,0.00027397,2]
[392706739,1761837047197,-156.73571291,0.00027397,5]
[392706740,1761837047206,-150.71638911,0.00027397,5]
[392706741,1761837047218,-1754.76,0.000274,2]
[392706742,1761837047228,-1647.63,0.000274,7]
[392706743,1761837047237,-997.56,0.000274,7]
[392706744,1761837047247,-3814.3,0.000274,2]
[392706745,1761837047256,-3814.3,0.000274,2]
[392706746,1761837047265,-3814.3,0.000274,2]
[392706747,1761837047274,-3814.3,0.000274,2]
[392706748,1761837047284,-3814.3,0.000274,2]
[392706749,1761837047294,-500.0,0.00027452,7]
[392706750,1761837047304,-198.27250364,0.000275,2]
[392706751,1761837047313,-541.62995217,0.000275,2]
[392706752,1761837047322,-1004.0,0.000275,2]
[392706753,1761837047332,-2500.0,0.000275,2]
[392706754,1761837047341,-3000.0,0.00027512,5]
[392706755,1761837047350,-500.0,0.00027518,7]
[392706756,1761837047360,-250.0,0.00027521,5]
[392706757,1761837047369,-500.0,0.00027553,7]
[392706758,1761837047378,-500.0,0.00027576,7]
[392706759,1761837047392,-500.0,0.00027671,3]
[392706760,1761837047401,-374.89,0.00027671,7]
[392706761,1761837047411,-750.0,0.00027671,2]
[392706762,1761837047420,-750.0,0.00027671,2]
[392706763,1761837047429,-476.34,0.00027671,30]
[392706764,1761837047438,-217.12,0.00027739,7]
[392706765,1761837047449,-9035.0,0.00027785,2]
[392706766,1761837047459,-152.0,0.00027802,19]
[392706767,1761837047468,-500.0,0.00027806,7]
[392706768,1761837047479,-500.0,0.00027895,7]
[392706769,1761837047488,-427.0,0.000279,13]
[392706770,1761837047497,-285.0,0.000279,2]
[392706771,1761837047506,-800.0,0.000279,13]
[392706772,1761837047519,-800.0,0.000279,13]
[392706773,1761837047528,-800.0,0.000279,13]
[392706774,1761837047537,-800.0,0.000279,13]
[392706775,1761837047547,-800.0,0.000279,13]
[392706776,1761837047556,-800.0,0.000279,13]
[392706777,1761837047565,-800.0,0.000279,13]
[392706778,1761837047575,-800.0,0.000279,13]
[392706779,1761837047586,-800.0,0.000279,13]
[392706780,1761837047595,-800.0,0.000279,13]
[392706781,1761837047608,-800.0,0.000279,13]
[392706782,1761837047617,-800.0,0.000279,13]
[392706783,1761837047626,-800.0,0.000279,13]
[392706784,1761837047635,-800.0,0.000279,13]
[392706785,1761837047645,-800.0,0.000279,13]
[392706786,1761837047655,-800.0,0.000279,13]
[392706787,1761837047664,-800.0,0.000279,13]
[392706788,1761837047673,-800.0,0.000279,13]
[392706789,1761837047684,-800.0,0.000279,13]
[392706790,1761837047693,-800.0,0.000279,13]
[392706791,1761837047702,-800.0,0.000279,13]
[392706792,1761837047711,-800.0,0.000279,13]
[392706793,1761837047721,-800.0,0.000279,13]
[392706794,1761837047733,-800.0,0.000279,13]
[392706795,1761837047742,-800.0,0.000279,13]
[392706796,1761837047751,-800.0,0.000279,13]
[392706797,1761837047761,-800.0,0.000279,13]
[392706798,1761837047770,-800.0,0.000279,13]
[392706799,1761837047780,-800.0,0.000279,13]
[392706800,1761837047789,-800.0,0.000279,13]
[392706801,1761837047799,-800.0,0.000279,13]
[392706802,1761837047809,-800.0,0.000279,13]
[392706803,1761837047818,-800.0,0.000279,13]
[392706804,1761837047827,-800.0,0.000279,13]
[392706805,1761837047837,-800.0,0.000279,13]
[392706806,1761837047847,-800.0,0.000279,13]
[392706807,1761837047857,-800.0,0.000279,13]
[392706808,1761837047866,-800.0,0.000279,13]
[392706809,1761837047876,-500.0,0.000279,2]
[392706810,1761837047886,-500.0,0.000279,2]
[392706811,1761837047896,-500.0,0.000279,2]
[392706812,1761837047906,-500.0,0.000279,2]
[392706813,1761837047916,-500.0,0.000279,2]
[392706814,1761837047926,-500.0,0.000279,2]
[392706815,1761837047935,-800.0,0.000279,13]
[392706816,1761837047945,-800.0,0.000279,13]
[392706817,1761837047954,-800.0,0.000279,13]
[392706818,1761837047963,-800.0,0.000279,13]
[392706819,1761837047972,-800.0,0.000279,13]
[392706820,1761837047987,-800.0,0.000279,13]
[392706821,1761837047996,-800.0,0.000279,13]
[392706822,1761837048006,-800.0,0.000279,13]
[392706823,1761837048015,-800.0,0.000279,13]
[392706824,1761837048025,-800.0,0.000279,13]
[392706825,1761837048034,-800.0,0.000279,13]
[392706826,1761837048043,-800.0,0.000279,13]
[392706827,1761837048052,-800.0,0.000279,13]
[392706828,1761837048062,-800.0,0.000279,13]
[392706829,1761837048071,-800.0,0.000279,13]
[392706830,1761837048080,-800.0,0.000279,13]
[392706831,1761837048089,-800.0,0.000279,13]
[392706832,1761837048098,-800.0,0.000279,13]
[392706833,1761837048108,-800.0,0.000279,13]
[392706834,1761837048117,-800.0,0.000279,13]
[392706835,1761837048127,-800.0,0.000279,13]
[392706836,1761837048136,-800.0,0.000279,13]
[392706837,1761837048146,-800.0,0.000279,13]
[392706838,1761837048155,-800.0,0.000279,13]
[392706839,1761837048164,-800.0,0.000279,13]
[392706840,1761837048173,-800.0,0.000279,13]
[392706841,1761837048182,-800.0,0.000279,13]
[392706842,1761837048191,-800.0,0.000279,13]
[392706843,1761837048201,-800.0,0.000279,13]
[392706844,1761837048211,-800.0,0.000279,13]
[392706845,1761837048220,-802.0,0.000279,13]
[392706846,1761837048233,-500.0,0.000279,2]
[392706847,1761837048243,-500.0,0.000279,2]
[392706848,1761837048252,-213.0,0.000279,2]
[392706849,1761837048261,-200.0,0.000279,2]
[392706850,1761837048270,-200.0,0.000279,2]
[392706851,1761837048279,-200.0,0.000279,2]
[392706852,1761837048288,-200.0,0.000279,2]
[392706853,1761837048297,-200.0,0.000279,2]
[392706854,1761837048306,-200.0,0.000279,2]
[392706855,1761837048316,-200.0,0.000279,2]
[392706856,1761837048325,-200.0,0.000279,2]
[392706857,1761837048334,-200.0,0.000279,2]
[392706858,1761837048343,-200.0,0.000279,2]
[392706859,1761837048353,-200.0,0.000279,2]
[392706860,1761837048362,-200.0,0.000279,2]
[392706861,1761837048371,-200.0,0.000279,2]
[392706862,1761837048380,-200.0,0.000279,2]
[392706863,1761837048390,-200.0,0.000279,2]
[392706864,1761837048399,-200.0,0.000279,2]
[392706865,1761837048408,-200.0,0.000279,2]
[392706866,1761837048417,-200.0,0.000279,2]
[392706867,1761837048427,-200.0,0.000279,2]
[392706868,1761837048437,-200.0,0.000279,2]
[392706869,1761837048447,-200.0,0.000279,2]
[392706870,1761837048457,-200.0,0.000279,2]
[392706871,1761837048467,-200.0,0.000279,2]
[392706872,1761837048476,-200.0,0.000279,2]
[392706873,1761837048486,-200.0,0.000279,2]
[392706874,1761837048495,-200.0,0.000279,2]
[392706875,1761837048504,-200.0,0.000279,2]
[392706876,1761837048514,-200.0,0.000279,2]
[392706877,1761837048523,-200.0,0.000279,2]
[392706878,1761837048533,-200.0,0.000279,2]
[392706879,1761837048542,-200.0,0.000279,2]
[392706880,1761837048551,-200.0,0.000279,2]
[392706881,1761837048560,-200.0,0.000279,2]
[392706882,1761837048570,-200.0,0.000279,2]
[392706883,1761837048579,-801.0,0.000279,13]
[392706884,1761837048588,-200.0,0.000279,2]
[392706885,1761837048598,-203.0,0.000279,13]
[392706886,1761837048610,-500.0,0.00027945,3]
[392706887,1761837048620,-374.89,0.00027945,8]
[392706888,1761837048630,-750.0,0.00027945,2]
[392706889,1761837048640,-750.0,0.00027945,2]
[392706890,1761837048651,-600.0,0.00027945,2]
[392706891,1761837048660,-114719.58747467,0.00028,2]
[392706892,1761837048670,-160.0,0.00028,2]
[392706893,1761837048681,-1000.0,0.00028,2]
[392706894,1761837048691,-107551.33782087,0.00028,2]
[392706895,1761837048701,-282.56,0.00028,2]
[392706896,1761837048711,-70315.56297581,0.00028,2]
[392706897,1761837048721,-4205.12114838,0.00028,2]
[392706898,1761837048733,-10346.918398,0.00028,10]
[392706899,1761837048744,-20671.88301134,0.00028,2]
[392706900,1761837048754,-50154.20343809,0.00028,2]
[392706901,1761837048763,-477.13749083,0.00028,10]
[392706902,1761837048773,-1500.0,0.00028,2]
[392706903,1761837048782,-477.13749083,0.00028,7]
[392706904,1761837048793,-500.0,0.00028017,7]
[392706905,1761837048802,-500.0,0.00028042,7]
[392706906,1761837048812,-967.47774999,0.0002806,5]
[392706907,1761837048822,-500.0,0.00028068,7]
[392706908,1761837048831,-454.25449138,0.00028068,5]
[392706909,1761837048840,-500.0,0.00028074,7]
[392706910,1761837048851,-1647.63,0.000281,7]
[392706911,1761837048860,-997.56,0.000281,7]
[392706912,1761837048871,-22116.05,0.000282,7]
[392706913,1761837048882,-500.0,0.00028219,3]
[392706914,1761837048892,-374.89,0.00028219,9]
[392706915,1761837048901,-750.0,0.00028219,2]
[392706916,1761837048912,-750.0,0.00028219,2]
[392706917,1761837048921,-152.0,0.00028296,20]
[392706918,1761837048930,-1754.76,0.000283,2]
[392706919,1761837048940,-500.0,0.00028354,7]
[392706920,1761837048949,-500.0,0.0002841,7]
[392706921,1761837048958,-500.0,0.00028493,3]
[392706922,1761837048968,-374.89,0.00028493,10]
[392706923,1761837048977,-165.43,0.00028493,2]
[392706924,1761837048987,-750.0,0.00028493,2]
[392706925,1761837048996,-750.0,0.00028493,2]
[392706926,1761837049005,-600.0,0.00028493,2]
[392706927,1761837049014,-1004.0,0.000285,2]
[392706928,1761837049023,-1500.0,0.000285,2]
[392706929,1761837049032,-500.0,0.00028553,7]
[392706930,1761837049042,-500.0,0.00028563,7]
[392706931,1761837049050,-1278.44073855,0.00028646,15]
[392706932,1761837049059,-13113.26724288,0.0002875,2]
[392706933,1761837049069,-500.0,0.00028767,3]
[392706934,1761837049078,-374.89,0.00028767,11]
[392706935,1761837049087,-750.0,0.00028767,2]
[392706936,1761837049096,-750.0,0.00028767,2]
[392706937,1761837049106,-152.0,0.00028791,21]
[392706938,1761837049115,-500.0,0.00028792,7]
[392706939,1761837049124,-1647.63,0.000288,7]
[392706940,1761837049133,-500.0,0.00028872,7]
[392706941,1761837049142,-16555.10158617,0.00028888,2]
[392706942,1761837049152,-500.0,0.0002889,7]
[392706943,1761837049161,-997.56,0.000289,7]
[392706944,1761837049171,-9017.13694387,0.00028946,2]
[392706945,1761837049180,-165.4863178,0.0002895,2]
[392706946,1761837049189,-500.0,0.00029,2]
[392706947,1761837049198,-12530.5030432,0.00029,2]
[392706948,1761837049206,-150.0,0.00029,2]
[392706949,1761837049215,-310893.43553499,0.00029,2]
[392706950,1761837049224,-1000.0,0.00029,2]
[392706951,1761837049234,-7030.14999785,0.00029,7]
[392706952,1761837049243,-300.3673224,0.00029,2]
[392706953,1761837049252,-550.0,0.00029,2]
[392706954,1761837049262,-1500.0,0.00029,2]
[392706955,1761837049271,-500.0,0.00029041,3]
[392706956,1761837049281,-374.89,0.00029041,12]
[392706957,1761837049290,-750.0,0.00029041,2]
[392706958,1761837049300,-750.0,0.00029041,2]
[392706959,1761837049309,-677.41749507,0.00029041,2]
[392706960,1761837049318,-5023.40464413,0.00029152,2]
[392706961,1761837049327,-5000.0,0.00029152,2]
[392706962,1761837049337,-5000.0,0.00029152,2]
[392706963,1761837049346,-5000.0,0.00029152,2]
[392706964,1761837049355,-5000.0,0.00029152,2]
[392706965,1761837049365,-1754.76,0.000292,2]
[392706966,1761837049374,-5391.85510433,0.00029217,2]
[392706967,1761837049384,-152.0,0.00029285,22]
[392706968,1761837049393,-500.0,0.00029315,3]
[392706969,1761837049402,-374.89,0.00029315,13]
[392706970,1761837049411,-750.0,0.00029315,2]
[392706971,1761837049421,-750.0,0.00029315,2]
[392706972,1761837049431,-500.0,0.00029328,7]
[392706973,1761837049440,-22116.05,0.000294,7]
[392706974,1761837049450,-500.0,0.00029482,7]
[392706975,1761837049460,-21842.2,0.000295,7]